[Event "GER-ch Youth-U18 2022"]
[Site "Willingen"]
[Date "2022.06.05"]
[Round "2.13"]
[White "Hassemeier, Mika"]
[Black "Chen, Qingzhi Alexander"]
[Result "1-0"]
[ECO "B90"]
[WhiteElo "2127"]
[BlackElo "1879"]
[Annotator "TA"]
[PlyCount "169"]
[EventDate "2022.06.05"]
[EventType "swiss"]
[EventRounds "9"]
[EventCountry "GER"]
[SourceTitle "playchess.com"]
[Source "ChessBase"]
[SourceQuality "1"]
[TimeControl "40/4500+30:900+30"]

{[%evp 10,168,27,7,36,3,12,6,25,-25,-25,-40,-25,-71,-56,-65,-29,-50,-2,-56,-11,-45,0,0,0,0,59,47,43,39,325,251,251,225,218,229,220,32,258,244,223,43,42,22,29,21,40,10,17,0,12,0,0,0,0,-14,29,37,31,-28,-28,-23,0,0,79,-15,0,0,78,77,104,0,0,-255,39,0,39,39,39,39,39,39,39,39,77,12,12,0,12,0,1425,1479,1339,1266,1991,1088,929,0,8823,1115,5189,3093,1495,1450,29970,29972,29968,6207,2204,0,0,0,1239,0,29970,0,1968,1227,12823,12802,12792,6307,5065,0,0,0,2933,1899,1495,1408,2361,2502,2323,0,2037,1664,1327,1204,29989,29990,29990,29991,29991,29992,29994,29993,29993,29994,29995,29994,29994,29995,29995,29995,29996,29997,29998,29998,29998,29999,29999]} 1. e4 {[%emt 0:00:00]} c5 {[%emt 0:00:00]} 2. Nf3 {[%emt 0:00:00]} d6 {[%emt 0:00:00]} 3. d4 {[%emt 0:00:00]} cxd4 {[%emt 0:00:00]} 4. Nxd4 {[%emt 0:00:00]} Nf6 {[%emt 0:00:00]} 5. Nc3 {[%emt 0:00:00]} a6 6. a3 {[%emt 0:00:00]} b5 {[%emt 0:00:00] B90: Sicilian Najdorf: Unusual White 6th moves, 6 Be3 Ng4 and 6 Be3 e5.} 7. Bd3 {[%emt 0:00:00]} Bb7 {[%emt 0:00:00]} 8. O-O {[%emt 0:00:00]} g6 {[%emt 0:00:00] The position is equal.} 9. f4 {[%emt 0:00:00]} (9. Re1 $142) 9... Nbd7 $11 {[%emt 0:00:00]} 10. Qe2 {[%emt 0:01:16]} Bg7 {[%emt 0:00:22]} 11. Nf3 {[%emt 0:12:30]} (11. Nb3 $11) 11... O-O $17 {[%emt 0:04:29] [#]} 12. Bd2 $146 {[%emt 0:01:40]} ({Predecessor:} 12. e5 dxe5 13. fxe5 Nd5 14. Nxd5 Bxd5 15. Bf4 e6 16. Rad1 Qc7 17. Be4 Bxe4 18. Qxe4 {½-½ (29) Buhrdorf,A (1885)-Ficken,H (1692) Bremen 2018}) 12... Qc7 {[%emt 0:01:37]} 13. Rae1 {[%emt 0:02:52]} e5 {[%emt 0:10:58]} (13... e6 $15) 14. Qf2 {[%emt 0:15:04]} (14. f5 $11) 14... Rfe8 {[%emt 0:08:59]} (14... Ng4 15. Qh4 Ngf6 16. f5 $11) 15. Qh4 {[%emt 0:05:02]} Nc5 {[%emt 0:12:12]} 16. fxe5 {[%emt 0:12:38]} dxe5 {[%emt 0:00:46]} 17. Ng5 $1 {[%emt 0:04:09][%cal Of1f6] Hoping for Rxf6!} h6 {[%emt 0:13:46] [#]} (17... Ncd7 $11) 18. Rxf6 $1 $14 {[%emt 0:12:50]} Bxf6 {[%emt 0:07:58]} (18... hxg5 19. Bxg5) 19. Qxh6 {[%emt 0:00:13]} Ne6 $2 {[%emt 0:01:54][%mdl 8192]} (19... Bxg5 $14 20. Bxg5 Nxd3) 20. Qh7+ {[%emt 0:08:26]} Kf8 {[%emt 0:00:05]} 21. Nxe6+ {[%emt 0:00:29]} Rxe6 {[%emt 0:00:31]} 22. Nd5 {[%emt 0:00:37]} Bxd5 {[%emt 0:07:48]} 23. Bb4+ $2 {[%emt 0:00:07]} (23. exd5 $18 Rd6 24. Bxg6 (24. Bh6+ Ke7 $16)) 23... Re7 {[%emt 0:01:07]} 24. exd5 $18 {[%emt 0:00:14] Chess con chili.} a5 {[%emt 0:01:21]} 25. Bxe7+ $2 {[%emt 0:00:51]} (25. Bd2 $1 $18 {[%cal Rd2h6]} Rd7 26. Be3 (26. Bh6+ Ke7 $11)) 25... Qxe7 $14 {[%emt 0:00:45]} 26. Qh6+ {[%emt 0:02:55]} (26. Kh1 {seems wilder.} Rd8 27. Be4 Qc5 28. Rf1) 26... Kg8 {[%emt 0:03:24]} 27. Qe3 {[%emt 0:00:06]} b4 {[%emt 0:00:47]} 28. a4 {[%emt 0:00:58]} Qd6 {[%emt 0:01:53]} 29. b3 {[%emt 0:02:30]} Kg7 {[%emt 0:03:41]} (29... Qxd5 $2 30. Be4 Qd8 31. Bxa8 Qxa8 32. Qf3 Qa7+ 33. Kh1 $18) 30. Bc4 {[%emt 0:01:10]} Rh8 {[%emt 0:00:42]} 31. Qe4 {[%emt 0:00:59]} Rh4 {[%emt 0:00:20]} 32. Qe3 {[%emt 0:00:39]} e4 {[%emt 0:00:32][%mdl 1024] Black has compensation.} 33. g3 {[%emt 0:00:07]} Rh5 {[%emt 0:01:59]} 34. Re2 {[%emt 0:01:10]} (34. Qxe4 $2 Re5 35. Qxe5 Bxe5 $19) (34. Rf1 $14) 34... Re5 $1 $11 {[%emt 0:01:59]} 35. Kg2 {[%emt 0:00:52]} Bg5 {[%emt 0:01:28]} 36. Qd4 {[%emt 0:00:09]} Bf6 {[%emt 0:00:16]} (36... f5 $11 {keeps the balance.}) 37. Qe3 {[%emt 0:00:27]} (37. Rxe4 $16 Qe7 38. Rxe5 Bxe5 39. Qe3) 37... Bg5 {[%emt 0:00:06]} 38. Qd4 {[%emt 0:01:47]} e3 {[%emt 0:01:09]} (38... Bf6 $11) 39. h4 {[%emt 0:00:48]} Bh6 {[%emt 0:00:06]} 40. g4 {[%emt 0:01:15]} (40. c3 $16) 40... Kh7 {[%emt 0:00:42]} 41. g5 $2 {[%emt 0:02:03][%mdl 8192] [#]} (41. Kh3 $11 {and White stays safe.}) 41... Bg7 $2 {[%emt 0:00:00]} ({Black should try} 41... Bxg5 $1 $19 {[%cal Od6f6][%mdl 512] aiming for ...Qf6!} 42. hxg5 (42. Re1 Bf6) 42... Rxg5+ 43. Kf1 Qg3 44. Qxe3 (44. Rxe3 Qg1+ 45. Ke2 Rg2+ 46. Kf3 Qf2+ 47. Ke4 Qf5#) 44... Rf5+ 45. Qf2 Rxf2+ 46. Rxf2 Kg7) 42. Qd3 {[%emt 0:00:37]} Qd7 {[%emt 0:02:00] ...Qg4+ is the strong threat.} 43. Rxe3 {[%emt 0:04:45]} Rxe3 {[%emt 0:00:11]} 44. Qxe3 $14 {[%emt 0:00:06][%mdl 4096] Endgame KQB-KQB} Qg4+ {[%emt 0:00:12]} 45. Qg3 {[%emt 0:02:08]} Qe4+ {[%emt 0:00:16]} 46. Qf3 {[%emt 0:01:08]} Qxc2+ {[%emt 0:01:01]} 47. Kh3 {[%emt 0:00:32]} (47. Be2 $16) 47... Qc3 $11 {[%emt 0:01:05]} 48. Bd3 {[%emt 0:02:03] And now h5 would win.} Kg8 {[%emt 0:01:32]} 49. d6 {[%emt 0:01:21]} Qxb3 $2 {[%emt 0:00:55][%mdl 8192]} (49... Qc8+ $11 50. Kg2 Qd7) 50. d7 $18 {[%emt 0:01:17]} Qe6+ {[%emt 0:00:05] [#]} 51. Bf5 $1 {[%emt 0:00:14][%mdl 512]} Qe7 {[%emt 0:02:33]} (51... Qb6 52. Bxg6) 52. Qa8+ {[%emt 0:02:00]} Kh7 {[%emt 0:00:04]} 53. Bxg6+ $2 {[%emt 0:01:21]} Kxg6 $4 {[%emt 0:00:40][%mdl 8192]} (53... fxg6 $11 54. d8=Q Qe6+ 55. Kg3 Qe1+ 56. Kf3 Qf1+ 57. Ke3 (57. Kg4 Qf5+ 58. Kg3 Be5+ 59. Kg2 Qg4+ 60. Kf1 Qc4+ 61. Kf2 Bd4+ 62. Kg3 Qd3+ 63. Kh2 Be5+ 64. Kg2 Qe2+ 65. Kg1 Qg4+ 66. Kf2 Bd4+ 67. Ke1 Qe6+ 68. Kd1 Qb3+ 69. Ke2 Qe3+ 70. Kd1 Qd3+ 71. Ke1 Qe3+ 72. Kd1 Qd3+ 73. Ke1 Qe3+ 74. Kd1 $11) 57... Qe1+ 58. Kd3 Qf1+ 59. Ke3 Qe1+ 60. Kd3 Qf1+ 61. Ke3) 54. d8=Q {[%emt 0:00:49]} Qe3+ {[%emt 0:00:31]} 55. Kg4 $1 {[%emt 0:00:59]} Qg1+ {[%emt 0:00:13]} 56. Kf4 {[%emt 0:00:47]} Qh2+ {[%emt 0:01:02]} 57. Ke3 {[%emt 0:00:37]} Qg1+ {[%emt 0:00:29]} 58. Kd3 {[%emt 0:01:05]} (58. Ke2 $142 Qh2+ 59. Kd3 Qg3+ 60. Kc4 Qxh4+ 61. Kb5 Qxg5+ 62. Qxg5+ Kxg5 63. Qxa5) 58... Qf1+ {[%emt 0:00:06]} 59. Ke4 $2 {[%emt 0:00:31]} (59. Kc2 $1 $18 {White wants to mate with Qd3+.} Qc4+ 60. Kd2 Qc3+ 61. Ke2 Qe5+ 62. Kf2 Qh2+ 63. Kf1 Qf4+ 64. Ke2 Qe5+ 65. Kf2 Qh2+ 66. Qg2 Qf4+ 67. Ke1 Qc1+ 68. Ke2 Qb2+ 69. Qd2 Qe5+ 70. Qe3 Qxe3+ 71. Kxe3) 59... Qg2+ $11 {[%emt 0:00:06]} 60. Kf4 {[%emt 0:00:13]} Qh2+ $1 {[%emt 0:00:09]} 61. Ke3 {[%emt 0:00:13]} Qg1+ $1 {[%emt 0:00:10]} 62. Kd3 {[%emt 0:00:25]} (62. Ke2 $142 Qh2+ 63. Kd3 Qg3+ 64. Kc4 Qxh4+ 65. Kb5 Qxg5+ 66. Qxg5+ Kxg5 67. Qxa5) 62... Qf1+ $18 {[%emt 0:00:05]} 63. Kc2 $1 {[%emt 0:00:49]} Qc4+ {[%emt 0:01:03]} 64. Kd2 $1 {[%emt 0:00:32]} Qf4+ {[%emt 0:01:10]} 65. Ke2 {[%emt 0:00:36]} Qh2+ {[%emt 0:00:48]} 66. Kf1 $2 {[%emt 0:00:20]} ({White has to play} 66. Kd3 $18 {Intending Qc6+ and mate.} Qxh4 67. Qg2) 66... Qf4+ $11 {[%emt 0:00:26]} 67. Ke2 {[%emt 0:00:57] White threatens Qd3+ and mate.} Qh2+ $1 {[%emt 0:00:14] White leaves nothing to chance now.} 68. Kd1 {[%emt 0:00:16] Threatening mate with Qd3+.} Qg1+ {[%emt 0:00:32]} 69. Kc2 $1 {[%emt 0:00:19]} Qc5+ {[%emt 0:00:11] [#]} 70. Kd3 $1 {[%emt 0:00:28]} Qc3+ {[%emt 0:00:31]} 71. Ke4 $2 {[%emt 0:00:27]} (71. Ke2 $18 {Qe4+ would kill now.} Qe5+ 72. Kf2 Qc5+ 73. Kg2 Qc2+ 74. Kg3 Qc3+ 75. Qf3 Be5+ 76. Kg4 Qc4+ 77. Kh3 Qe6+ 78. Kg2) 71... Qe5+ $2 {[%emt 0:00:13][%mdl 8192] [#]} (71... Qc4+ $11 72. Ke3 Qc5+ 73. Ke2 Qe5+ 74. Kf2 Qc5+ 75. Kg2 Qc2+ 76. Kg3 Qc3+ 77. Qf3 Be5+ 78. Kf2 Qc2+ 79. Ke3 Qc5+ 80. Ke2 Qc2+ 81. Qd2 Qxd2+ 82. Kxd2 Bb2) 72. Kf3 $1 $18 {[%emt 0:00:39]} Qf5+ {[%emt 0:00:51]} 73. Ke3 {[%emt 0:00:35]} Qe5+ {[%emt 0:00:21]} 74. Qe4+ {[%emt 0:00:05] White mates.} Qxe4+ {[%emt 0:00:05]} 75. Kxe4 {[%emt 0:00:05]} b3 {[%emt 0:00:21]} 76. Qb6+ {[%emt 0:00:07]} f6 {[%emt 0:00:08]} 77. gxf6 {[%emt 0:00:10]} Bxf6 {[%emt 0:00:16]} 78. h5+ {[%emt 0:00:10]} Kg5 {[%emt 0:00:38]} 79. Qxa5+ {[%emt 0:00:06]} Kh6 {[%emt 0:00:05]} 80. Qb6 {[%emt 0:00:18][%csl LRb3,LRf6]} Kg5 {[%emt 0:00:08]} 81. Qxb3 {[%emt 0:00:07]} Kxh5 {[%emt 0:00:09]} 82. Kf5 {[%emt 0:00:13]} Bd8 {[%emt 0:00:26]} 83. Qh3+ {[%emt 0:00:07]} Bh4 {[%emt 0:00:05]} 84. Qg4+ {[%emt 0:00:02]} Kh6 {[%emt 0:00:08]} 85. Qg6# {[%emt 0:00:03] Weighted Error Value: White=0.57/Black=0.64} 1-0

[Event "GER-ch Youth-U18 2022"]
[Site "Willingen"]
[Date "2022.06.05"]
[Round "2.14"]
[White "Kallweit, Paul"]
[Black "Orf, Niklas"]
[Result "1/2-1/2"]
[ECO "A41"]
[WhiteElo "1863"]
[BlackElo "1797"]
[Annotator "NA RC COMBH"]
[PlyCount "119"]
[EventDate "2022.06.05"]
[EventType "swiss"]
[EventRounds "9"]
[EventCountry "GER"]
[SourceTitle "playchess.com"]
[Source "ChessBase"]
[SourceQuality "1"]
[TimeControl "40/4500+30:900+30"]

1. d4 {[%emt 0:00:00]} d6 {[%emt 0:00:00]} 2. Nf3 {[%emt 0:00:00]} Nf6 {[%emt 0:00:00]} 3. Nc3 {[%emt 0:00:00]} Nbd7 {[%emt 0:00:00]} 4. e4 {[%emt 0:00:00]} e5 {[%emt 0:00:00]} 5. Bc4 {[%emt 0:00:00]} Be7 {[%emt 0:00:00]} 6. O-O {[%emt 0:00:00]} c6 {[%emt 0:00:00]} 7. Re1 {[%emt 0:00:21]} Qc7 {[%emt 0:00:00]} 8. a4 {[%emt 0:13:48]} h6 {[%emt 0:00:00]} 9. b3 $11 {[%emt 0:04:41]} O-O {[%emt 0:00:00]} 10. Ba3 {[%emt 0:01:06]} Re8 {[%emt 0:00:00]} 11. h3 {[%emt 0:06:06]} Bf8 {[%emt 0:06:46]} 12. Bf1 {[%emt 0:03:15]} b6 {[%emt 0:03:49]} 13. a5 {[%emt 0:06:35]} Bb7 {[%emt 0:04:52]} 14. a6 {[%emt 0:04:30]} Bc8 {[%emt 0:00:09]} 15. b4 {[%emt 0:24:58]} b5 {[%emt 0:01:35]} 16. Bb2 {[%emt 0:03:41]} Qb6 {[%emt 0:14:15]} 17. d5 {[%emt 0:00:58]} Bxa6 {[%emt 0:06:43]} 18. dxc6 {[%emt 0:00:40]} Qxc6 {[%emt 0:01:20]} 19. Ra5 {[%emt 0:00:14]} Bb7 {[%emt 0:02:01]} 20. Bxb5 {[%emt 0:00:58]} Qb6 {[%emt 0:00:40]} 21. Bd3 {[%emt 0:05:57]} Bc6 {[%emt 0:01:29]} 22. Bb5 {[%emt 0:00:51]} Rec8 {[%emt 0:02:39]} 23. Ra6 {[%emt 0:03:05]} Qb7 {[%emt 0:00:10]} 24. Rxc6 {[%emt 0:00:29]} Rxc6 {[%emt 0:00:15]} 25. Bxc6 {[%emt 0:00:05]} Qxc6 {[%emt 0:00:05]} 26. b5 {[%emt 0:01:18]} Qc4 {[%emt 0:01:02]} 27. Nd2 {[%emt 0:01:59]} Qb4 {[%emt 0:02:38]} 28. Qa1 {[%emt 0:00:20]} Rc8 {[%emt 0:00:41]} 29. Re3 {[%emt 0:00:35]} Nc5 {[%emt 0:02:16]} 30. Ba3 {[%emt 0:01:15]} Qa5 {[%emt 0:02:21]} 31. Nc4 {[%emt 0:00:46]} Qc7 {[%emt 0:00:07]} 32. Bxc5 {[%emt 0:00:46]} Qxc5 {[%emt 0:00:42]} 33. Na5 {[%emt 0:00:21]} Qb6 {[%emt 0:02:04]} 34. Rd3 {[%emt 0:01:03]} d5 {[%emt 0:13:56]} 35. exd5 {[%emt 0:00:22]} Bc5 {[%emt 0:00:10]} 36. Nc6 {[%emt 0:00:40]} e4 {[%emt 0:08:55]} 37. Rd1 {[%emt 0:01:08]} Bxf2+ {[%emt 0:02:26]} 38. Kh1 {[%emt 0:00:04]} Re8 {[%emt 0:00:10]} 39. Qa4 {[%emt 0:00:43]} Qc5 {[%emt 0:02:58]} 40. Qb4 {[%emt 0:01:12]} Nd7 {[%emt 0:04:14]} 41. Qxc5 {[%emt 0:00:00]} Bxc5 {[%emt 0:00:00]} 42. g4 {[%emt 0:00:00]} g6 {[%emt 0:00:00]} 43. Rf1 {[%emt 0:02:23]} Nb6 {[%emt 0:00:00]} 44. Kg2 {[%emt 0:08:47]} Nc4 {[%emt 0:09:03]} 45. Re1 {[%emt 0:03:55]} f5 {[%emt 0:01:35]} 46. gxf5 {[%emt 0:00:29]} gxf5 {[%emt 0:00:08]} 47. Kg3 {[%emt 0:00:28]} Kg7 {[%emt 0:02:35]} 48. Ne2 {[%emt 0:01:19]} Kf6 {[%emt 0:03:19]} 49. Ncd4 {[%emt 0:01:03]} Ne3 {[%emt 0:01:42]} 50. Ra1 {[%emt 0:01:16]} Nxd5 {[%emt 0:03:00]} 51. Ra6+ {[%emt 0:00:27]} Bb6 {[%emt 0:01:08]} 52. c4 {[%emt 0:00:52]} Nb4 {[%emt 0:00:03]} 53. c5 {[%emt 0:00:04]} Nxa6 {[%emt 0:00:04]} 54. cxb6 {[%emt 0:00:05]} axb6 {[%emt 0:00:12]} 55. bxa6 {[%emt 0:00:07]} Ra8 {[%emt 0:00:06]} 56. Kf4 {[%emt 0:00:37]} Rxa6 {[%emt 0:01:07]} 57. Nxf5 {[%emt 0:00:12]} Ra3 {[%emt 0:00:49]} 58. Ne3 {[%emt 0:00:57]} b5 {[%emt 0:00:36]} 59. Nd4 {[%emt 0:00:23]} b4 {[%emt 0:00:22]} 60. Ndc2 1/2-1/2

[Event "GER-ch Youth-U18 2022"]
[Site "Willingen"]
[Date "2022.06.06"]
[Round "3.1"]
[White "Fromm, Marius"]
[Black "Hinrichs, Paul"]
[Result "1-0"]
[ECO "C50"]
[WhiteElo "2317"]
[BlackElo "2244"]
[Annotator "TA"]
[PlyCount "117"]
[EventDate "2022.06.05"]
[EventType "swiss"]
[EventRounds "9"]
[EventCountry "GER"]
[SourceTitle "playchess.com"]
[Source "ChessBase"]
[SourceQuality "1"]
[TimeControl "40/4500+30:900+30"]

{[%evp 11,117,10,20,20,29,23,27,8,18,13,25,25,25,16,17,21,17,20,10,20,0,13,36,-32,0,0,0,0,60,60,54,63,43,44,75,74,80,70,120,137,135,126,122,102,151,142,279,44,37,27,109,127,114,107,108,65,52,52,127,127,127,127,127,90,127,127,156,156,164,157,156,170,388,359,296,276,1116,1110,408,105,105,105,1122,1122,5110,4676,3232,1612,3158,2222,1654,1124,1124,1124,1448,1304,2262,1174,29979,29980,29980,29981,29982,29983,29983,29983,29982,29983]} 1. e4 {[%emt 0:00:00]} e5 {[%emt 0:00:00]} 2. Nf3 {[%emt 0:00:00]} Nc6 {[%emt 0:00:00]} 3. Bc4 {[%emt 0:00:00]} Bc5 {[%emt 0:00:00]} 4. d3 {[%emt 0:00:00]} Nf6 {[%emt 0:00:00]} 5. O-O {[%emt 0:00:00]} d6 {[%emt 0:00:00]} 6. c3 {[%emt 0:00:00]} a6 {[%emt 0:00:00]} 7. a4 {[%emt 0:00:00] C54: Giuoco Piano: 4 c3 Nf6, main lines with 5 d4 and 5 d3.} Ba7 {[%emt 0:00:00]} 8. Nbd2 {[%emt 0:00:00]} O-O {[%emt 0:00:00]} 9. h3 {[%emt 0:00:00] White has an edge.} h6 {[%emt 0:00:00]} 10. Re1 {[%emt 0:00:00]} Ne7 {[%emt 0:00:00]} 11. Nf1 {[%emt 0:00:00]} Ng6 {[%emt 0:00:00]} 12. Ng3 {[%emt 0:00:00]} c6 {[%emt 0:00:00]} 13. Bb3 {[%emt 0:00:00]} d5 {[%emt 0:00:00]} 14. exd5 {[%emt 0:00:00]} Nxd5 {[%emt 0:00:00]} 15. d4 {[%emt 0:00:00]} exd4 {[%emt 0:00:00]} 16. Nxd4 {[%emt 0:00:00]} Be6 {[%emt 0:00:00] [#]} 17. Ne4 $146 {[%emt 0:17:49]} (17. Nxe6 $14 fxe6 18. Rxe6) ({Predecessor:} 17. Bc2 Bd7 18. Bb3 Qa5 19. Bxd5 Qxd5 20. Ndf5 Qxd1 21. Rxd1 Bxf5 22. Nxf5 Rfd8 23. Be3 Bxe3 24. Nxe3 {½-½ (31) Grischuk,A (2778)-Korobov,A (2683) Krasnaya Polyana 2021}) 17... Bxd4 {[%emt 0:07:42]} 18. Qxd4 {[%emt 0:02:18][%cal Oc1h6]} Ndf4 {[%emt 0:01:43]} 19. Bxe6 {[%emt 0:00:49]} Qxd4 {[%emt 0:09:05]} ({Better is} 19... Nxe6 $11 20. Qb4 Rb8) 20. Bxf7+ $1 $14 {[%emt 0:00:05]} (20. cxd4 Nxe6 21. Be3 Rad8 $11) 20... Rxf7 {[%emt 0:00:02]} 21. cxd4 {[%emt 0:00:06]} Rd8 {[%emt 0:00:15]} 22. Be3 {[%emt 0:02:59]} Nh4 {[%emt 0:12:43]} 23. Bxf4 {[%emt 0:00:47]} Rxf4 {[%emt 0:00:03]} 24. Rad1 {[%emt 0:02:21]} Nf5 {[%emt 0:05:05]} (24... a5 $14) 25. g3 $16 {[%emt 0:14:47]} Rf3 {[%emt 0:00:09]} 26. Nc5 {[%emt 0:00:03] [#] Threatens to win with Kg2.} Nxd4 {[%emt 0:12:54]} 27. Nxb7 {[%emt 0:08:08]} Rb8 {[%emt 0:13:46]} (27... Ne2+ $142 28. Kf1 (28. Kg2 Rxd1 29. Rxd1 Rb3 $16) 28... Rxd1 29. Rxd1 Rb3) 28. Re7 {[%emt 0:06:28]} c5 {[%emt 0:18:42]} (28... Kf8 $16 {is a better defense.} 29. Rd7 Ne6) 29. Kg2 $2 {[%emt 0:07:35]} (29. Nxc5 $18 Rb4 30. Kg2) 29... Rbf8 $14 {[%emt 0:01:37]} 30. Rf1 {[%emt 0:02:06]} ({Wrong is} 30. Nxc5 $2 Rxf2+ 31. Kg1 (31. Kh1 Nf3) 31... Ne2+ 32. Rxe2 Rxe2 $19) 30... Rb3 {[%emt 0:02:22]} (30... Nb3 $1 $11 {remains equal.}) 31. Nxc5 $16 {[%emt 0:01:10]} Rxb2 {[%emt 0:00:03]} 32. Nxa6 {[%emt 0:01:44]} Rc8 {[%emt 0:01:49]} 33. Nc7 {[%emt 0:05:51]} Nf5 $1 {[%emt 0:00:41]} 34. Re5 {[%emt 0:01:22]} Rxc7 {[%emt 0:00:13]} (34... Nh4+ $1 $14 35. gxh4 Rxc7) 35. Rxf5 $14 {[%emt 0:00:05][%mdl 4096] Endgame KRR-KRR} Ra2 {[%emt 0:00:02] Prevents Ra1.} 36. Rd1 {[%emt 0:03:19] Black must now prevent Rd8+.} Rxa4 {[%emt 0:00:05]} 37. Rd8+ {[%emt 0:00:16]} Kh7 {[%emt 0:00:01]} 38. h4 {[%emt 0:00:34]} Rb4 {[%emt 0:00:02]} 39. h5 {[%emt 0:03:58] And now Rff8 would win.} g6 {[%emt 0:00:13]} 40. Rf6 {[%emt 0:00:12]} gxh5 {[%emt 0:01:19]} 41. Rdd6 {[%emt 0:15:03] Kh3 is the strong threat.} Rb5 $2 {[%emt 0:17:06]} (41... Rb2 42. Rxh6+ Kg8 43. Rdg6+ (43. Rxh5 Rf7 $16) 43... Kf7 44. Rf6+ Kg7 45. Rhg6+ Kh7) 42. Rxh6+ $18 {[%emt 0:00:14]} Kg7 {[%emt 0:00:24]} 43. Rdg6+ {[%emt 0:03:03]} Kf7 $2 {[%emt 0:00:08]} (43... Kf8 44. f4 Rc1) 44. Rb6 {[%emt 0:01:19]} Kg7 {[%emt 0:03:08]} 45. Rxb5 $2 {[%emt 0:02:33]} (45. Rhg6+ $18 {and White stays clearly on top.} Kh7 46. Rh6+ Kg7 47. Rbg6+ (47. Rxb5 Kxh6 48. Rb6+ Kg7 $16) 47... Kf7 48. Rd6) 45... Kxh6 {[%emt 0:00:06] KR-KR} 46. Rb6+ {[%emt 0:00:03]} Kg7 $2 {[%emt 0:00:00][%mdl 8192] [#] This costs Black the game.} (46... Kh7 $16) 47. Kh3 $1 {[%emt 0:00:00]} ({Less strong is} 47. f4 Rc1 48. Rb5 Kh6 $16) 47... Rc2 {[%emt 0:00:00]} 48. f4 {[%emt 0:00:00]} Rf2 {[%emt 0:00:00]} 49. Kh4 {[%emt 0:00:00]} Rh2+ {[%emt 0:00:00]} 50. Kg5 {[%emt 0:00:00]} Rh3 {[%emt 0:00:00]} 51. Rb7+ {[%emt 0:00:00]} Kg8 {[%emt 0:00:00]} 52. Rb3 {[%emt 0:00:00]} h4 {[%emt 0:00:00]} 53. Rb8+ {[%emt 0:00:00]} Kg7 {[%emt 0:00:00]} 54. Rb7+ {[%emt 0:00:00]} Kg8 {[%emt 0:00:00]} 55. g4 {[%emt 0:00:00] White mates.} Rh1 {[%emt 0:00:00]} 56. f5 {[%emt 0:00:00][%cal Bf4f5,Bf5f6][%mdl 32]} h3 {[%emt 0:00:00]} 57. Kg6 {[%emt 0:00:00][%cal Rb7b8]} Kf8 {[%emt 0:00:00]} 58. f6 {[%emt 0:00:00][%cal Rb7b8]} Re1 {[%emt 0:00:00]} 59. Rh7 {[%emt 0:00:00] Weighted Error Value: White=0.24 (precise) /Black=0.38} 1-0